Cogmind - Beta 15 @@@ ROGUE MODE // 2025.07.17 @ 10:10:48 Player: beans Result: Destroyed by S-27 Virus with Autogun Performance ------------- Evolutions (3) 1500 Regions Visited (5) 1000 Robots Destroyed (39) 195 Value Destroyed (1256) 1256 Prototype IDs (2) 40 Alien Tech Used (0) 0 Bonus (255) 255 TOTAL SCORE: 4246 Bonus ------- Follower Combat Kills 255 Cogmind --------- Core Integrity 0/700 Matter 180/300 Energy 72/100 System Corruption 1% Temperature Warning (361) Movement Core (50) Location -7/Factory Parts ------- > --- POWER (2) -------- (None) > --- PROPULSION (4) --- (None) > --- UTILITY (3) ------ Improved Signal Interpreter Advanced Terrain Scan Processor > --- WEAPON (4) ------- (None) > --- INVENTORY (5) ---- (None) Peak State ------------ > --- POWER ------------ Ion Engine > --- PROPULSION ------- Armored Treads > --- UTILITY ---------- Improved Signal Interpreter Advanced Terrain Scan Processor > --- WEAPON ----------- Improved Medium Laser Gauss Rifle Flak Gun Advanced Assault Cannon > --- INVENTORY -------- Katana [Rating: 26] Favorites ----------- Power Light Nuclear Core Engine Ion Engine Power Core Light Nuclear Core Propulsion Light Treads Treads Light Treads Utility Terrain Scanner Device Terrain Scanner Processor Improved Signal Interpreter Weapon Improved Medium Laser Energy Gun Improved Medium Laser Energy Cannon Advanced Beam Cannon Ballistic Gun Assault Rifle Ballistic Cannon Advanced Assault Cannon Launcher Grenade Launcher Build | -11 -10 -10 -9 -8 -7 ------- Run | Yrd Mat Min Mat Mat Fac Slots Evolved 6 | . . . 2 2 2 Power 1 | . . . . 1 . Propulsion 2 | . . . . . 2 Utility 1 | . . . 1 . . Weapon 2 | . . . 1 1 . Parts Attached 28 | 5 2 1 11 1 8 Power 4 | 1 1 . 1 . 1 Engine 1 | 1 . . . . . Core 3 | . 1 . 1 . 1 Reactor . | . . . . . . Propulsion 4 | 2 . . 1 . 1 Treads 4 | 2 . . 1 . 1 Leg . | . . . . . . Wheel . | . . . . . . Hover . | . . . . . . Flight . | . . . . . . Utility 6 | . 1 . 3 1 1 Device 4 | . 1 . 3 . . Storage . | . . . . . . Processor 2 | . . . . 1 1 Hackware . | . . . . . . Protection . | . . . . . . Artifact . | . . . . . . Weapon 14 | 2 . 1 6 . 5 Energy Gun 4 | . . . 4 . . Energy Cannon 4 | . . . 2 . 2 Ballistic Gun 4 | 2 . . . . 2 Ballistic Cannon 1 | . . . . . 1 Launcher 1 | . . 1 . . . Special Weapon . | . . . . . . Impact Weapon . | . . . . . . Slashing Weapon . | . . . . . . Piercing Weapon . | . . . . . . Special Melee Weapon . | . . . . . . Unidentified Prototypes 2 | . . . 2 . . Parts Lost 24 | . 1 . 7 7 9 Power 4 | . . . 1 1 2 Propulsion 4 | . 1 . 2 . 1 Utility 4 | . . . 2 2 . Weapon 12 | . . . 2 4 6 Highest Loss Streak 7 | . 1 . 2 7 6 To Critical Strikes . | . . . . . . Average Backups 2 | . . 2 3 4 1 Power . | . . 1 1 1 . Propulsion . | . . . . . . Utility . | . . . . . . Weapon 2 | . . 1 2 3 1 Tool/Special . | . . . . . . Unused Backups 1 | . . . . . 1 Power . | . . . . . . Propulsion . | . . . . . . Utility . | . . . . . . Weapon 1 | . . . . . 1 Tool/Special . | . . . . . . Average Slot Usage (%) 64 | . 73 71 71 51 44 Engine 1 | . 6 . . . 5 Core 8 | . 7 14 9 7 . Treads 10 | . 26 14 10 . 3 Device 13 | . 3 14 19 16 . Processor 2 | . . . . 4 13 Energy Gun 11 | . . . 19 15 5 Energy Cannon 4 | . . . 8 7 . Ballistic Gun 6 | . 28 15 . . 9 Launcher 3 | . . 12 2 . . Peak Build Rating 26 | 5 8 7 17 19 26 Average Rating 12 | 3 6 7 13 15 18 On Entrance 6 | . 5 7 7 16 3 Naked Turns . | . . . . . . Heaviest Build 22 | 8 9 11 18 17 22 Greatest Support 40 | 40 40 20 40 3 20 Greatest Overweight (x) 5 | . . . 5 5 4 Average Overweight (x) . | . . . . 2 1 Largest Inventory Capacity 5 | 5 5 5 5 5 5 Average Capacity 5 | 5 5 5 5 5 5 Most Carried 5 | 4 2 3 5 5 5 Average Carried 2 | . . 2 3 4 1 Final Capacity 5 | 5 5 5 5 5 5 Final Carried 5 | . 1 3 5 4 . Class Distribution -------------------- 42% | Mutant 23% | Scavenger-Skirmisher 21% | Skirmisher 11% | Gunner Dominant Class ---------------- Mutant | -10/Materials Mutant | -10/Mines Scavenger-Skirmisher | -9/Materials Skirmisher | -8/Materials Gunner | -7/Factory Resources | -11 -10 -10 -9 -8 -7 ----------- Run | Yrd Mat Min Mat Mat Fac Matter Collected 686 | 223 47 56 283 . 77 Remotely . | . . . . . . Salvage Created 1560 | . 243 . 953 68 296 Parts 98 | . 12 . 65 4 17 Haulers Intercepted 4 | . . . 3 1 . Recyclers Shooed 3 | . 1 . 1 1 . Parts Field Recycled . | . . . . . . Retrieved Matter . | . . . . . . Parts Self-Destructed . | . . . . . . Prevented . | . . . . . . Kills | -11 -10 -10 -9 -8 -7 ------- Run | Yrd Mat Min Mat Mat Fac Combat Hostiles Destroyed 25 | . 5 . 14 . 6 Guns 15 | . 5 . 9 . 1 Cannons 8 | . . . 3 . 5 AOE 1 | . . . 1 . . Classes Destroyed 13 | . 1 . 9 . 3 Worker 2 | . . . 2 . . Builder 2 | . . . 2 . . Hauler 4 | . . . 3 1 . Recycler 2 | . . . 1 . 1 Mechanic 2 | . . . 2 . . Operator 2 | . . . 2 . . Swarmer 2 | . . . . . 2 Grunt 16 | . 5 . 9 . 2 Brawler 1 | . . . 1 . . Duelist 1 | . . . 1 . . Sentry 3 | . . . 3 . . Hunter 1 | . . . . . 1 Programmer 1 | . . . . . 1 Best Kill Streak 4 | . 4 . 4 1 3 Combat Bots Only 4 | . 4 . 2 . 3 Max Kills in Single Turn 1 | . 1 . 1 1 1 Gunslinging . | . . . . . . Exploded 1 | . . . 1 . . Melee . | . . . . . . Uniques/NPCs Destroyed . | . . . . . . Combat | -11 -10 -10 -9 -8 -7 -------- Run | Yrd Mat Min Mat Mat Fac Hostile Shots Fired 328 | . 46 . 45 51 186 Missed 89 | . 8 . 10 18 53 Hits 239 | . 38 . 35 33 133 Projectile 239 | . 38 . 35 33 133 Critical Strikes 6 | . 1 . 2 1 2 Damage Taken 3538 | . 575 . 538 562 1863 Core 1126 | . 107 . 80 233 706 Absorbed by Shields . | . . . . . . Core Remaining (%) 73 | 100 . 57 80 57 . Volleys Fired 112 | . 18 . 68 8 18 Largest 4 | . 2 . 3 4 4 Hottest 204 | . 40 . 180 204 155 Shots Fired 275 | . 36 . 174 18 47 Gun 188 | . 36 . 119 10 23 Cannon 80 | . . . 49 7 24 Launcher 7 | . . . 6 1 . Special . | . . . . . . Kinetic 63 | . 36 . 3 . 24 Thermal 161 | . . . 128 10 23 Explosive 7 | . . . 6 1 . Electromagnetic 44 | . . . 37 7 . Robot Hit Streak 10 | . 10 . 7 5 8 Robot Miss Streak 5 | . 3 . 5 2 5 Penetration Max 1 | . . . . . 1 Secondary Targets 1 | . 1 . . . . Max Gunslinging Chain 1 | . 1 . . . . Shots Hit Robots 146 | . 25 . 79 10 32 Core Hits 65 | . 13 . 32 8 12 Critical Kills 1 | . . . 1 . . Critical Parts Destroyed . | . . . . . . Critical Strikes 9 | . . . 6 1 2 Burn 6 | . . . 4 1 1 Meltdown 1 | . . . 1 . . Blast 1 | . . . . . 1 Corrupt 1 | . . . 1 . . Melee Attacks . | . . . . . . Impact . | . . . . . . Slashing . | . . . . . . Piercing . | . . . . . . Sneak Attacks . | . . . . . . Combat Hostiles . | . . . . . . Follow-up Attacks . | . . . . . . Damage Inflicted 2775 | . 272 . 1590 381 532 Guns 1554 | . 272 . 981 144 157 Cannons 809 | . . . 388 61 360 Explosions 397 | . . . 221 176 . Melee . | . . . . . . Ramming 15 | . . . . . 15 Kinetic 491 | . 272 . 26 . 193 Thermal 1559 | . . . 1124 111 324 Explosive 291 | . . . 115 176 . Electromagnetic 419 | . . . 325 94 . Impact . | . . . . . . Slashing . | . . . . . . Piercing . | . . . . . . Highest Corruption 1 | . . . . . 1 Average Corruption 1 | . . . . . 1 Corruption Purged . | . . . . . . Corruption Blocked . | . . . . . . Overload Shots . | . . . . . . Overflow Damage . | . . . . . . Projectiles . | . . . . . . Explosions . | . . . . . . Melee . | . . . . . . Knockbacks . | . . . . . . Impact . | . . . . . . Kinetic . | . . . . . . Secondary . | . . . . . . Self-Inflicted Damage 47 | . . . 40 . 7 Shots 1 | . . . 1 . . Rammed 5 | . . . . . 5 Targets Rammed 5 | . . . . . 5 Kicked . | . . . . . . Crushed . | . . . . . . Highest Temperature 573 | . 76 . 573 167 430 Average Temperature 123 | . 20 . 124 67 204 Received Heat Transfer 1443 | . 312 . 240 315 576 Effects 11 | . . . 9 . 2 Shutdowns 2 | . . . 2 . . Interference 3 | . . . 3 . . Matter Decay 3 | . . . 2 . 1 Damage (minor) 3 | . . . 2 . 1 Siege Activations . | . . . . . . Martial Activations . | . . . . . . Shielding Activations . | . . . . . . Robots Disrupted . | . . . . . . Combat Hostiles . | . . . . . . Robots Corrupted . | . . . . . . Combat Hostiles . | . . . . . . Parts Fried 1 | . . . 1 . . Impact Corruptions . | . . . . . . Robots Melted 1 | . . . 1 . . Combat Hostiles 1 | . . . 1 . . Parts Melted 5 | . . . 4 1 . Heat Transferred 3389 | . . . 2518 238 633 Parts Sabotaged . | . . . . . . Parts Stolen . | . . . . . . Parts Stripped . | . . . . . . Power Chain Reactions 3 | . . . 3 . . Alert | -11 -10 -10 -9 -8 -7 ------- Run | Yrd Mat Min Mat Mat Fac Maximum Alert Level 1 | . . . 1 1 . Low Security (%) 75 | 100 100 100 52 75 100 Level 1 24 | . . . 47 24 . Level 2 . | . . . . . . Level 3 . | . . . . . . Level 4 . | . . . . . . Level 5 . | . . . . . . High Security . | . . . . . . Max Security . | . . . . . . Peak Influence 297 | . 90 19 297 218 125 Initial 108 | . . 19 . 108 74 Average 96 | . 42 1 167 141 20 Influence Increases 1375 | . 120 . 807 217 231 Destroy 0b10 Robot/C 680 | . 100 . 460 . 120 Destroy 0b10 Robot/NC 75 | . . . 65 5 5 Destroy Leader 160 | . 20 . 108 2 30 Allied During Kill 56 | . . . 56 . . Successful Hack 14 | . . . . . 14 Disable Machine 120 | . . . 75 30 15 Anti-Garrison Action 150 | . . . . 150 . Destroy Structure 30 | . . . 28 . 2 Lose Combat Pursuer 90 | . . . 15 30 45 Influence Decreases 1260 | . 70 50 550 309 281 Entered New Map 271 | . . 31 . 149 91 Time Decay 726 | . 60 19 435 90 122 Lost Part 203 | . 10 . 55 70 68 Lost Ally 60 | . . . 60 . . Squads Dispatched 7 | . . . 2 3 2 Investigation 1 | . . . 1 . . Extermination 1 | . . . . . 1 Reinforcement 3 | . . . 1 1 1 Assault 2 | . . . . 2 . Garrison . | . . . . . . Intercept . | . . . . . . Searches Triggered . | . . . . . . Construction Impeded 1 | . . . . . 1 Haulers Reinforced . | . . . . . . Active Scanning Responses . | . . . . . . Cargo Convoy Interrupts . | . . . . . . Stealth | -11 -10 -10 -9 -8 -7 --------- Run | Yrd Mat Min Mat Mat Fac Distress Signals 3 | . 1 . 2 . . Communications Jammed . | . . . . . . Distress Signals . | . . . . . . Times Spotted 73 | . 12 . 27 16 18 Peak Tracking Total 13 | . 5 . 5 13 11 Tactical Retreats 4 | . . . 1 1 2 Traps | -11 -10 -10 -9 -8 -7 ------- Run | Yrd Mat Min Mat Mat Fac Traps Triggered 3 | . 1 . 1 1 . Indirectly . | . . . . . . Trap Hack Attempts . | . . . . . . Triggered . | . . . . . . Disarmed . | . . . . . . Reprogrammed . | . . . . . . Reused . | . . . . . . Traps Extracted . | . . . . . . Installed . | . . . . . . Triggered . | . . . . . . Machines | -11 -10 -10 -9 -8 -7 ---------- Run | Yrd Mat Min Mat Mat Fac Machines Disabled 9 | . . . 5 3 1 Max in Single Turn 1 | . . . 1 1 1 Garrison Access 1 | . . . . 1 . Machines Repaired . | . . . . . . Machines Dismantled . | . . . . . . Machines Sabotaged . | . . . . . . Overloaded Fab Kills . | . . . . . . Hacking | -11 -10 -10 -9 -8 -7 --------- Run | Yrd Mat Min Mat Mat Fac Machines Accessed 2 | . . . 1 . 1 Terminals 2 | . . . 1 . 1 Fabricators . | . . . . . . Repair Stations . | . . . . . . Recycling Units . | . . . . . . Scanalyzers . | . . . . . . Garrison Access . | . . . . . . Total Hacks 4 | . . . 3 . 1 Successful 1 | . . . . . 1 Failed 3 | . . . 3 . . Catastrophic . | . . . . . . Database Lockouts . | . . . . . . Manual . | . . . . . . Terminals 4 | . . . 3 . 1 Fabricators . | . . . . . . Repair Stations . | . . . . . . Recycling Units . | . . . . . . Scanalyzers . | . . . . . . Garrison Access . | . . . . . . Terminal Hacks 1 | . . . . . 1 Locate Traps 1 | . . . . . 1 Fabricator Hacks . | . . . . . . Repair Station Hacks . | . . . . . . Recycling Unit Hacks . | . . . . . . Scanalyzer . | . . . . . . Garrison Access Hacks . | . . . . . . Unauthorized Hacks . | . . . . . . Terminals . | . . . . . . Fabricators . | . . . . . . Repair Stations . | . . . . . . Recycling Units . | . . . . . . Scanalyzers . | . . . . . . Garrison Access . | . . . . . . Data Cores Recovered . | . . . . . . Used . | . . . . . . Hacking Detections 1 | . . . 1 . . Full Trace Events 1 | . . . 1 . . Feedback Events . | . . . . . . Feedback Blocked . | . . . . . . Robot Schematics Acquired . | . . . . . . Robots Built . | . . . . . . Authchips . | . . . . . . Time . | . . . . . . Total Robot Build Rating . | . . . . . . Part Schematics Acquired . | . . . . . . Parts Built . | . . . . . . Authchips . | . . . . . . Time . | . . . . . . Total Part Build Rating . | . . . . . . Parts Repaired . | . . . . . . Time . | . . . . . . Parts Recycled . | . . . . . . Recycled Matter . | . . . . . . Retrieved Matter . | . . . . . . Retrieved Components . | . . . . . . Parts Scanalyzed . | . . . . . . Part Schematics Acquired . | . . . . . . Parts Damaged . | . . . . . . Bothacking | -11 -10 -10 -9 -8 -7 ------------ Run | Yrd Mat Min Mat Mat Fac Used RIF Installer . | . . . . . . Robots Hacked . | . . . . . . Non-combat . | . . . . . . Combat . | . . . . . . Robot Hacks Applied . | . . . . . . Relay Couplers Released 1 | . . . . 1 . Machine Destruction 1 | . . . . 1 . Fabnet Peak Effective % . | . . . . . . Robots Rewired . | . . . . . . Allies Hacked . | . . . . . . Hacks Repelled . | . . . . . . Allies | -11 -10 -10 -9 -8 -7 -------- Run | Yrd Mat Min Mat Mat Fac Total Allies 3 | . . 3 . . . Largest Group 3 | . . 3 3 . . Highest-Rated Group 40 | . . 40 40 . . Highest-Rated Ally 16 | . . 16 16 . . Total Orders . | . . . . . . Ally Attacks 56 | . . . 56 . . Total Damage 589 | . . . 589 . . Kills 10 | . . . 10 . . Allies Corrupted . | . . . . . . Allies Melted . | . . . . . . Intel | -11 -10 -10 -9 -8 -7 ------- Run | Yrd Mat Min Mat Mat Fac Active Infowar (turns) 2093 | . 49 504 1366 174 . Terrain 1489 | . . . 1315 174 . Structural 604 | . 49 504 51 . . Robot Analysis Total . | . . . . . . Derelict Logs Recovered . | . . . . . . Drone Launches . | . . . . . . Drone Recoveries . | . . . . . . Exploration | -11 -10 -10 -9 -8 -7 ------------- Run | Yrd Mat Min Mat Mat Fac Turns Passed 2964 | 65 198 504 1436 183 578 Spaces Moved 1409 | 45 90 227 690 95 262 Core 313 | 14 . . 70 95 134 Treads 1096 | 31 90 227 620 . 128 Legs . | . . . . . . Wheels . | . . . . . . Hover . | . . . . . . Flight . | . . . . . . Fastest Speed 50 | 50 160 160 160 50 50 Average Speed 168 | 125 160 160 171 164 180 Slowest Speed 300 | 160 160 160 300 300 250 Overloaded Moves . | . . . . . . Propulsion Burnouts . | . . . . . . Robots Hopped . | . . . . . . Potential Cave-ins . | . . . . . . Cave-ins Triggered . | . . . . . . Exploration Rate (%) 22 | 3 21 36 49 17 7 Regions Visited 5 Branch Regions 1 Pre-discovered Areas . | . . . . . . Known Exits Taken 1 | . . . . 1 . Unknown Exits Taken 4 | 1 1 1 1 . . Scrap Searched 1 | . . 1 . . . Spaces Dug . | . . . . . . Terrain Destroyed 26 | . . . 25 . 1 Melee . | . . . . . . Projectile . | . . . . . . AOE 25 | . . . 25 . . Terrain Rammed . | . . . . . . Walls Destroyed . | . . . . . . Machines Disabled . | . . . . . . Actions | -11 -10 -10 -9 -8 -7 --------- Run | Yrd Mat Min Mat Mat Fac Total 1769 | 54 111 367 802 104 331 Wait 186 | . . 138 24 . 24 Move 1404 | 44 89 226 689 94 262 Hop . | . . . . . . Pick Up 27 | 5 2 2 9 . 9 Fast Attach 3 | . . . 2 1 . Attach 24 | 5 1 . 7 1 10 Detach . | . . . . . . Swap 4 | . 1 1 2 . . Drop 4 | . . . 1 . 3 Fire 112 | . 18 . 68 8 18 Melee . | . . . . . . Ram 5 | . . . . . 5 Kick . | . . . . . . Crush . | . . . . . . Escape Stasis . | . . . . . . Rewire . | . . . . . . Trap . | . . . . . . Miscellaneous . | . . . . . . Route ------- -11/Scrapyard -10/Materials -10/Mines -9/Materials (discovered 2 exits: *Mat x2) -8/Materials -7/Factory History --------- Turn | Location | Event 5 | -11/Scrapyard | Discovered new exit (range 15) 66 | -11/Scrapyard | Entered Materials 256 | -10/Materials | Discovered new exit (range 6) 264 | -10/Materials | Entered Mines 308 | -10/Mines | YI-UF0 nonchalantly dropped a Grenade Launcher on the ground 332 | -10/Mines | Build established: Mutant 579 | -10/Mines | Assisted by bots powering up and referring to "LRC-V3" 744 | -10/Mines | Discovered new exit (range 10) 768 | -10/Mines | Entered Materials 768 | -9/Materials | Accompanied by 3 allies 768 | -9/Materials | Evolved 2 slots: Utility x1, Weapon x1 1192 | -9/Materials | Build established: Skirmisher 1432 | -9/Materials | Discovered new exit (range 16) 1589 | -9/Materials | Build established: Scavenger-Skirmisher 2078 | -9/Materials | Discovered new exit (range 16) 2204 | -9/Materials | Entered another Materials area 2204 | -8/Materials | Evolved 2 slots: Power x1, Weapon x1 2382 | -8/Materials | Discovered new exit (range 4) 2386 | -8/Materials | Identified exit to Factory 2387 | -8/Materials | Entered Factory 2387 | -7/Factory | Evolved 2 slots: Propulsion x2 2409 | -7/Factory | Lost 7 parts (1p2u4w) 2861 | -7/Factory | Build established: Gunner 2928 | -7/Factory | Lost 6 parts (1p1n4w) 2932 | -7/Factory | Core integrity fell below 50% 2963 | -7/Factory | Core integrity fell below 20% 2965 | -7/Factory | Destroyed by S-27 Virus with Autogun Last Messages --------------- Slammed into G-47 Trooper. Slug penetrates Wall. K-01 Serf collects debris. Acquired Lgt. Nuclear Core. K-01 Serf collects debris. Destroyed VTOL Module. S-27 Virus destroyed. R-06 Scavenger collects VTOL Module. U-05 Engineer builds a Wall. Acquired 27 matter. R-06 Scavenger collects VTOL Module. Hvy. Particle Cannon destroyed. G-50 Soldier destroyed. Lgt. Nuclear Core destroyed. P-60 Hacker destroyed. Acquired 50 matter. Plasma Cannon destroyed. Slammed into Y-54 Guardian. Overheating: Matter decay (-28). Slammed into Y-54 Guardian. Map ----- +----------------------------------------------------+ | ??????????###############+#####^ = #?????????? | | ?????????????????????# [ # #?????????? | | ?????????????????????# ! # """" #?????????? | | ?????????????????????# # """" #?????????? | | ?????????????????????# """""" # """" #?????????? | | ?????????????????????# """""" + """" #?????????? | | ?????????????????????# """""" # """" ##????????? | | ?????????????????????# """""" # """" #????????? | | ?????????????????????# + """ +????????? | | ?????????????????????# * # #????????? | | ?????????????????????#######+##^ #????????? | | ???????????????????????????# #????????? | | ????????#######????????????# ^ ^ #????????? | | ????????? = ???????????# ! #????????? | | ?????????? ?########## #????????? | | ??????????? """ # # "Y" ####?????? | | ???????????"""" # # """ ???? | | ???????????"""" + " " + ?? | | ????????# # "T" # g ??? | | ????????# """ ?# """ !# #######+#########?? | | ????????# """"" ??# ###k####????????????????? | | ???????????"""????#/###### rg !#????????????????? | | ???????????? ?????# ###### g #????????????????? | | ??????????????????# # [#g"""" #????????????????? | | ??????????????????# # Y#h"""" +????????????????? | | ??????????????????# # !!@g"""" #????????????????? | | ??????????????????# # s# """" #????????????????? | | ??????????????????# + ########????????????????? | | ??????????????????# ####+#???????????????????????? | | ??????????????????# #??# #???????????????????????? | | ?????????????????? ??# #???????????????????????? | | ????????????????? ??# #???????????????????????? | | ???????????????? ?? +???????????????????????? | | ???????????????? ??# #???????????????????????? | | ???????????????##? ??# #???????????????????????? | | ?????????????????? ??? ????????????????????????? | | ?????????????????# #??+????????????????????????? | | ?????????????????# #???????????????????????????? | | ?????????????????# #???????????????????????????? | | ?????????????????? ????????????????????????????? | | ?????????????????? ????????????????????????????? | | ?????????????????? ????????????????????????????? | | ?????????????????????????????????????????????????? | | ?????????????????????????????????????????????????? | | ?????????????????????????????????????????????????? | | ?????????????????????????????????????????????????? | | ?????????????????????????????????????????????????? | | ?????????????????????????????????????????????????? | | ?????????????????????????????????????????????????? | | ?????????????????????????????????????????????????? | +----------------------------------------------------+ Best States ------------- Heat Dissipation 52 Energy Generation 14 Energy Capacity 250 Matter Stores 300 Matter Capacity 300 Sight Range 16 Terrain Scan Range 14 Terrain Scan Density 210 Evasion (%) 50 Recoil Reduction 2 Item Schematics ----------------- None Robot Schematics ------------------ None Fabricated ------------ Nothing Repaired ---------- Nothing Alien Tech Used ----------------- None Achievements -------------- None Challenges ------------ None Game ------ Seed BiometalMolecularDevice Manual? 0 Play Time 00:19:36 Cumulative 56.9 hours Start 2025.07.17 @ 09:51:34 End 2025.07.17 @ 10:10:48 Sessions 1 Manual Loads 0 Difficulty Rogue Special Mode None Game No. 247 Rogue 247 Adventurer 0 Explorer 0 Win Type - Total 0 Types 0/0/0/0/0/0/0/0/0/0 Lore% 37 Gallery% 29 Achievement% 24 Wizard Run 0 Options --------- Layout 2 ASCII 0 Keyboard 0 Movement Mouse Keybinds 0 Fullscreen 1 Font 24/Smallcaps Map View 50x44 Zoom Use 0% Tactical HUD 0 Map Filters NONE Filters NONE Steam 1 RUN: 11346534-9312-47e1-a2ac-ae72fa3df8dd